Cogmind - Beta 15 @@@ ROGUE MODE // 2025.09.18 @ 02:03:23 Player: deadnoob Result: Destroyed by S-10 Pest with Light Assault Rifle Performance ------------- Evolutions (0) 0 Regions Visited (2) 400 Robots Destroyed (31) 155 Value Destroyed (558) 558 Prototype IDs (11) 220 Alien Tech Used (0) 0 Bonus (0) 0 TOTAL SCORE: 1333 Bonus ------- None Cogmind --------- Core Integrity 0/250 Matter 280/300 Energy 200/200 System Corruption 0% Temperature Cool (0) Movement Treading (240) Ox1 Location -10/Subcaves Parts ------- > --- POWER (1) -------- Subdweller Power Source > --- PROPULSION (2) --- Light Treads Subdweller Monowheel > --- UTILITY (2) ------ Medium Storage Unit Light Armor Plating > --- WEAPON (2) ------- Medium Laser Medium Laser > --- INVENTORY (10) --- Meta Core Heat Sink High-capacity Matter Pod (190) Subdweller Optics Subdweller Laser Mining Laser Peak State ------------ > --- POWER ------------ Ion Engine > --- PROPULSION ------- Light Treads Subdweller Monowheel > --- UTILITY ---------- Scrap Shield > --- WEAPON ----------- Medium Laser Medium Laser > --- INVENTORY -------- Meta Core Medium Storage Unit Light Armor Plating Medium Laser Mining Laser [Rating: 11] Favorites ----------- Power Ion Engine Engine Ion Engine Propulsion Light Treads Treads Light Treads Leg Aluminum Leg Wheel Subdweller Monowheel Utility Scrap Shield Device Seismic Detector Storage Small Storage Unit Protection Scrap Shield Weapon Medium Laser Energy Gun Medium Laser Ballistic Gun Assault Rifle Special Weapon Mining Laser Build | -11 -10 -10 ------- Run | Yrd Mat Sub Slots Evolved . | . . . Power . | . . . Propulsion . | . . . Utility . | . . . Weapon . | . . . Parts Attached 21 | 2 8 11 Power 4 | . 2 2 Engine 4 | . 2 2 Core . | . . . Reactor . | . . . Propulsion 5 | . 2 3 Treads 3 | . 2 1 Leg . | . . . Wheel 2 | . . 2 Hover . | . . . Flight . | . . . Utility 7 | 1 2 4 Device 2 | 1 . 1 Storage 2 | . 1 1 Processor . | . . . Hackware . | . . . Protection 3 | . 1 2 Artifact . | . . . Weapon 5 | 1 2 2 Energy Gun 3 | . 1 2 Energy Cannon . | . . . Ballistic Gun 1 | 1 . . Ballistic Cannon . | . . . Launcher . | . . . Special Weapon 1 | . 1 . Impact Weapon . | . . . Slashing Weapon . | . . . Piercing Weapon . | . . . Special Melee Weapon . | . . . Unidentified Prototypes . | . . . Parts Lost 7 | . 1 6 Power 2 | . 1 1 Propulsion 3 | . . 3 Utility 1 | . . 1 Weapon 1 | . . 1 Highest Loss Streak 2 | . 1 2 To Critical Strikes 1 | . . 1 Average Backups 6 | 4 7 5 Power . | 1 . . Propulsion . | 2 1 . Utility 2 | . 2 2 Weapon 1 | 1 1 1 Tool/Special . | . . . Unused Backups 18 | . 12 6 Power 2 | . 2 . Propulsion 2 | . 2 . Utility 7 | . 3 4 Weapon 6 | . 5 1 Tool/Special 1 | . . 1 Average Slot Usage (%) 89 | . 100 79 Engine 13 | . 14 13 Treads 18 | . 22 15 Leg 2 | . 5 . Wheel 2 | . . 5 Device 3 | . 3 2 Storage 8 | . 14 2 Protection 10 | . 10 10 Energy Gun 20 | . 14 26 Ballistic Gun 6 | . 13 1 Peak Build Rating 11 | 7 8 11 Average Rating 8 | 6 7 8 On Entrance 7 | 6 7 8 Naked Turns . | . . . Heaviest Build 27 | 12 20 27 Greatest Support 40 | 20 40 40 Greatest Overweight (x) 2 | . . 2 Average Overweight (x) . | . . . Largest Inventory Capacity 10 | 8 10 10 Average Capacity 7 | 8 8 5 Most Carried 10 | 5 10 10 Average Carried 6 | 4 7 5 Final Capacity 10 | 8 10 10 Final Carried 10 | 4 10 6 Class Distribution -------------------- 89% | Mutant 10% | Scavenger-Mutant Dominant Class ---------------- Mutant | -10/Materials Mutant | -10/Subcaves Resources | -11 -10 -10 ----------- Run | Yrd Mat Sub Matter Collected 781 | 188 430 163 Remotely . | . . . Salvage Created 772 | 25 450 297 Parts 59 | 1 36 22 Haulers Intercepted 2 | . 2 . Recyclers Shooed . | . . . Parts Field Recycled . | . . . Retrieved Matter . | . . . Parts Self-Destructed 10 | . . 10 Prevented . | . . . Kills | -11 -10 -10 ------- Run | Yrd Mat Sub Combat Hostiles Destroyed 21 | . 11 10 Guns 21 | . 11 10 Classes Destroyed 8 | 1 6 1 Worker 2 | . 2 . Builder 1 | . 1 . Tunneler 2 | 1 1 . Hauler 2 | . 2 . Watcher 3 | . 3 . Swarmer 12 | . 8 4 Grunt 3 | . 3 . Subdweller 6 | . . 6 Best Kill Streak 4 | 1 4 4 Combat Bots Only 4 | . 3 4 Max Kills in Single Turn 2 | 1 2 1 Gunslinging 1 | . 1 . Exploded . | . . . Melee . | . . . Uniques/NPCs Destroyed . | . . . Combat | -11 -10 -10 -------- Run | Yrd Mat Sub Hostile Shots Fired 151 | . 47 104 Missed 48 | . 13 35 Hits 103 | . 34 69 Projectile 103 | . 34 69 Critical Strikes 1 | . . 1 Damage Taken 1540 | . 315 1225 Core 252 | . 19 233 Absorbed by Shields . | . . . Redirected to Shielding 4 | . 4 . Core Remaining (%) 100 | 100 . . Volleys Fired 107 | 1 53 53 Largest 2 | 1 2 2 Hottest 100 | 40 100 100 Shots Fired 184 | 1 90 93 Gun 156 | 1 74 81 Cannon . | . . . Launcher . | . . . Special 28 | . 16 12 Kinetic 44 | . 37 7 Thermal 140 | 1 53 86 Explosive . | . . . Electromagnetic . | . . . Robot Hit Streak 15 | 1 7 15 Robot Miss Streak 3 | . 3 2 Penetration Max . | . . . Secondary Targets 4 | . 2 2 Max Gunslinging Chain 1 | . 1 1 Shots Hit Robots 110 | 1 48 61 Core Hits 48 | 1 26 21 Critical Kills . | . . . Critical Parts Destroyed . | . . . Critical Strikes 7 | . 2 5 Burn 7 | . 2 5 Melee Attacks . | . . . Impact . | . . . Slashing . | . . . Piercing . | . . . Sneak Attacks . | . . . Combat Hostiles . | . . . Follow-up Attacks . | . . . Damage Inflicted 1460 | 12 684 764 Guns 1381 | 12 605 764 Cannons . | . . . Explosions . | . . . Melee . | . . . Ramming 31 | . 31 . Kinetic 403 | . 351 52 Thermal 1026 | 12 302 712 Explosive . | . . . Electromagnetic . | . . . Impact . | . . . Slashing . | . . . Piercing . | . . . Highest Corruption . | . . . Average Corruption . | . . . Corruption Purged . | . . . Corruption Blocked . | . . . Overload Shots . | . . . Overflow Damage . | . . . Projectiles . | . . . Explosions . | . . . Melee . | . . . Knockbacks 1 | . 1 . Impact 1 | . 1 . Kinetic . | . . . Secondary . | . . . Self-Inflicted Damage . | . . . Shots . | . . . Rammed 3 | . 3 . Targets Rammed 6 | . 6 . Kicked 2 | . 2 . Crushed 1 | . 1 . Highest Temperature 202 | . 202 6 Average Temperature 57 | . 58 6 Received Heat Transfer 387 | . 69 318 Siege Activations . | . . . Martial Activations . | . . . Shielding Activations . | . . . Robots Disrupted . | . . . Combat Hostiles . | . . . Robots Corrupted . | . . . Combat Hostiles . | . . . Parts Fried . | . . . Impact Corruptions . | . . . Robots Melted . | . . . Combat Hostiles . | . . . Parts Melted 4 | . . 4 Heat Transferred 3422 | 25 918 2479 Parts Sabotaged . | . . . Parts Stolen . | . . . Parts Stripped . | . . . Power Chain Reactions . | . . . Alert | -11 -10 -10 ------- Run | Yrd Mat Sub Maximum Alert Level . | . . . Low Security (%) 100 | 100 100 . Level 1 . | . . . Level 2 . | . . . Level 3 . | . . . Level 4 . | . . . Level 5 . | . . . High Security . | . . . Max Security . | . . . Peak Influence 163 | 5 163 . Initial . | . . . Average 43 | 3 43 . Influence Increases 594 | 5 434 155 Destroy 0b10 Robot/C 300 | . 220 80 Destroy 0b10 Robot/NC 50 | 5 45 . Destroy Leader 60 | . 60 . Successful Hack 26 | . 26 . Select Force Hacks 60 | . 60 . Disable Machine 15 | . 15 . Destroy Structure 8 | . 8 . Lose Combat Pursuer 75 | . . 75 Influence Decreases 520 | 5 434 81 Time Decay 490 | 5 424 61 Lost Part 30 | . 10 20 Squads Dispatched 2 | . 2 . Investigation 2 | . 2 . Extermination . | . . . Reinforcement . | . . . Assault . | . . . Garrison . | . . . Intercept . | . . . Searches Triggered . | . . . Construction Impeded . | . . . Haulers Reinforced . | . . . Active Scanning Responses . | . . . Cargo Convoy Interrupts . | . . . Stealth | -11 -10 -10 --------- Run | Yrd Mat Sub Distress Signals 2 | . 2 . Communications Jammed . | . . . Distress Signals . | . . . Times Spotted 32 | . 16 16 Peak Tracking Total 4 | . 3 4 Tactical Retreats 3 | . . 3 Traps | -11 -10 -10 ------- Run | Yrd Mat Sub Traps Triggered 4 | . . 4 Indirectly . | . . . Trap Hack Attempts . | . . . Triggered . | . . . Disarmed . | . . . Reprogrammed . | . . . Reused . | . . . Traps Extracted . | . . . Installed . | . . . Triggered . | . . . Machines | -11 -10 -10 ---------- Run | Yrd Mat Sub Machines Disabled 3 | . 1 2 Max in Single Turn 1 | . 1 1 Machines Repaired . | . . . Machines Dismantled . | . . . Machines Sabotaged . | . . . Overloaded Fab Kills . | . . . Hacking | -11 -10 -10 --------- Run | Yrd Mat Sub Machines Accessed 13 | . 11 2 Terminals 8 | . 8 . Fabricators . | . . . Repair Stations 1 | . 1 . Recycling Units 2 | . 2 . Scanalyzers . | . . . Garrison Access . | . . . Total Hacks 33 | . 29 4 Successful 16 | . 12 4 Failed 17 | . 17 . Catastrophic 5 | . 5 . Database Lockouts . | . . . Manual 20 | . 20 . Terminals 25 | . 25 . Fabricators . | . . . Repair Stations 2 | . 2 . Recycling Units 2 | . 2 . Scanalyzers . | . . . Garrison Access . | . . . Terminal Hacks 8 | . 4 4 Record 3 | . . 3 Robot Analysis 1 | . 1 . Locate Traps 3 | . 3 . Proto ID Catalog 1 | . . 1 Fabricator Hacks . | . . . Repair Station Hacks . | . . . Recycling Unit Hacks . | . . . Scanalyzer . | . . . Garrison Access Hacks . | . . . Unauthorized Hacks 8 | . 8 . Terminals 6 | . 6 . Operators 1 | . 1 . Skim 5 | . 5 . Fabricators . | . . . Repair Stations . | . . . Recycling Units 2 | . 2 . Tunnel 2 | . 2 . Scanalyzers . | . . . Garrison Access . | . . . Data Cores Recovered . | . . . Used . | . . . Hacking Detections 8 | . 8 . Full Trace Events 1 | . 1 . Feedback Events . | . . . Feedback Blocked . | . . . Robot Schematics Acquired . | . . . Robots Built . | . . . Authchips . | . . . Time . | . . . Total Robot Build Rating . | . . . Part Schematics Acquired . | . . . Parts Built . | . . . Authchips . | . . . Time . | . . . Total Part Build Rating . | . . . Parts Repaired . | . . . Time . | . . . Parts Recycled . | . . . Recycled Matter . | . . . Retrieved Matter . | . . . Retrieved Components . | . . . Parts Scanalyzed . | . . . Part Schematics Acquired . | . . . Parts Damaged . | . . . Bothacking | -11 -10 -10 ------------ Run | Yrd Mat Sub Used RIF Installer . | . . . Robots Hacked . | . . . Non-combat . | . . . Combat . | . . . Robot Hacks Applied . | . . . Relay Couplers Released . | . . . Fabnet Peak Effective % . | . . . Robots Rewired . | . . . Allies Hacked . | . . . Hacks Repelled . | . . . Allies | -11 -10 -10 -------- Run | Yrd Mat Sub Total Allies . | . . . Largest Group . | . . . Highest-Rated Group . | . . . Highest-Rated Ally . | . . . Total Orders . | . . . Ally Attacks . | . . . Total Damage . | . . . Kills . | . . . Allies Corrupted . | . . . Allies Melted . | . . . Intel | -11 -10 -10 ------- Run | Yrd Mat Sub Active Infowar (turns) 818 | 6 542 270 Optics 37 | . . 37 Seismic 781 | 6 542 233 Robot Analysis Total 1 | . 1 . Derelict Logs Recovered . | . . . Drone Launches . | . . . Drone Recoveries . | . . . Exploration | -11 -10 -10 ------------- Run | Yrd Mat Sub Turns Passed 4358 | 20 2074 2264 Spaces Moved 2144 | 11 1196 937 Core . | . . . Treads 1788 | . 915 873 Legs 292 | 11 281 . Wheels 64 | . . 64 Hover . | . . . Flight . | . . . Fastest Speed 80 | 120 120 80 Average Speed 176 | 120 150 210 Slowest Speed 240 | 120 160 240 Overloaded Moves . | . . . Propulsion Burnouts . | . . . Robots Hopped . | . . . Potential Cave-ins . | . . . Cave-ins Triggered . | . . . Exploration Rate (%) 44 | 2 99 33 Regions Visited 2 Branch Regions 1 Pre-discovered Areas 4 | . 4 . Known Exits Taken 1 | . 1 . Unknown Exits Taken 1 | 1 . . Scrap Searched . | . . . Spaces Dug 4 | . 4 . Terrain Destroyed 8 | . 8 . Melee . | . . . Projectile 8 | . 8 . AOE . | . . . Terrain Rammed . | . . . Walls Destroyed . | . . . Machines Disabled . | . . . Actions | -11 -10 -10 --------- Run | Yrd Mat Sub Total 2479 | 17 1347 1115 Wait 129 | . 57 72 Move 2142 | 10 1195 937 Hop . | . . . Pick Up 26 | 1 15 10 Fast Attach 9 | 1 1 7 Attach 9 | . 2 7 Detach 4 | . . 4 Swap 13 | 1 7 5 Drop 29 | 3 11 15 Fire 107 | 1 53 53 Melee . | . . . Ram . | . . . Kick 2 | . 2 . Crush 4 | . 4 . Escape Stasis . | . . . Rewire . | . . . Trap . | . . . Miscellaneous 5 | . . 5 Route ------- -11/Scrapyard -10/Materials (discovered 5 exits: [*Mat x3] / [*Min] / *Sub) -10/Subcaves (discovered 2 exits: [*Mat] / [*Rec]) History --------- Turn | Location | Event 3 | -11/Scrapyard | Discovered new exit (range 1) 21 | -11/Scrapyard | Entered Materials 323 | -10/Materials | Discovered new exit (range 9) 325 | -10/Materials | Build established: Mutant 483 | -10/Materials | Discovered new exit (range 11) 565 | -10/Materials | Discovered new exit (range 3) 973 | -10/Materials | Discovered new exit (range 13) 1344 | -10/Materials | Identified exit to Subcaves 1408 | -10/Materials | Learned Storage security intel 1507 | -10/Materials | Learned 2 Storage zone layouts 1585 | -10/Materials | Learned Storage trap positions 1640 | -10/Materials | Learned location of Subcaves (-10) 2095 | -10/Materials | Entered Subcaves 2096 | -10/Subcaves | Approached by a straggling Scientist 2142 | -10/Subcaves | Build established: Scavenger-Mutant 2303 | -10/Subcaves | Core integrity fell below 50% 2587 | -10/Subcaves | Build established: Mutant 2619 | -10/Subcaves | Discovered new exit (range 14) 3039 | -10/Subcaves | Visited 4L-MR0's lab 3092 | -10/Subcaves | Found Meta Core 3202 | -10/Subcaves | Visited Clippyterm 3209 | -10/Subcaves | Learned Factory emergency access door positions 3888 | -10/Subcaves | Discovered new exit (range 14) 3971 | -10/Subcaves | Core integrity fell below 20% 4359 | -10/Subcaves | Destroyed by S-10 Pest with Light Assault Rifle Last Messages --------------- 03889_ Lgt. Ion Engine fries itself beyond repair. 03889_ Flight Unit fries itself beyond repair. 03891_ Lgt. Assault Rifle fries itself beyond repair. 03893_ Lgt. Ion Engine fries itself beyond repair. 03894_ Flight Unit fries itself beyond repair. 03894_ Lgt. Assault Rifle fries itself beyond repair. 03899_ Autobeam Turret suffers critical hit (Burn). 03906_ Scrap Shield destroyed. 03978_ Ion Engine destroyed. 03986_ 6P-MLZ(R) suffers critical hit (Burn). 03986_ 6P-MLZ(R) overheating. 03995_ 6P-MLZ(R) suffers critical hit (Burn). 03995_ 6P-MLZ(R) overheating. 04022_ 6P-MLZ(R) destroyed. 04025_ Acquired 15 matter. 04027_ Acquired Sub. Power Source. 04030_ Acquired Sub. Laser. 04031_ Acquired 10 matter. 04178_ Acquired Hcp. Matter Pod. 04192_ Acquired Heat Sink. Map ----- +----------------------------------------------------+ | ???????????????????# ##??????????## | | ?????????????????### ##????????????### | | ????????????????## ##??????????????#" | | ????????????????# #??????????????#" | | ???????????????## #??????????????##" "" | | ???????????????# ##??????????????###### | | ???????????????# ##??????????????????? | | ???????????????# #??????????????????? | | ??????????????# ## ##??????????????????? | | ??????????????# ### #??????????????????? | | ??????????????###### # ##??????????????????? | | ?????????????????## ##??????????????????? | | ?????????????????# #??????????????????? | | ?????????????????# # ###??????????????????? | | ?????????????????# ###????????????????????? | | ?????????????????## ##????????#?####???????? | | ?????????????????## #?????????"# ???????? | | ????????????????## ##????????? ##?????? | | ????#########??## #?????????## "#?????? | | ???##"""""""#### #???##??###" "###?### | | ???#""" """" ### ###### ### " ### | | ???#"" """" " ## # ## # | | ???# "" ## #?### | | ????## " ##" # ss < ### # | | ????###+##### ## ##### ## ## # | | ????#" "#?# #< @ ##??# ## | | ????#" "#?# ### ##### ### | | ????# ""#?# ### #?# #### | | ????# X"#?# # " ## ### ###?# | | ????# ""#?#####" ## ## #??# ## %% | | ????#!#""#?????# # ##### ##??# ### | | ????# #""#?????## #???## #??## ##? | | ????######??????# ######### #???##??#### | | ????????????????## ### # # ##?????????? | | ?????????????????###??# #?????????? | | ??????????????????????# #?????????? | | ??????????????????????# ### ##?????????? | | ??????????????????????# ###?# ##??????????? | | ?????????????????????## ##?# #???????????? | | ??????????????????#### #?# ##???????????? | | ??????????????????# #### #????????????? | | ??????????????##### ##########???????? | | ??????????????#"""## ### ## #???????? | | ??????????????#"" ## #???????? | | ??????????????#" ## ##???????? | | ??????????????#"" ## ##### #????????? | | ??????????????#"""### ##### #????????? | | ??????????????#####?## ######?### | | ???????????????????### ## ## # | | ??????????????????## &%& #?# | +----------------------------------------------------+ Best States ------------- Heat Dissipation 25 Energy Generation 10 Energy Capacity 250 Matter Stores 490 Matter Capacity 500 Sight Range 21 Terrain Scan Density 10 Armor Coverage 800 Core Shielding 20 Evasion (%) 55 Recoil Reduction 2 Item Schematics ----------------- None Robot Schematics ------------------ None Fabricated ------------ Nothing Repaired ---------- Nothing Alien Tech Used ----------------- None Achievements -------------- None Challenges ------------ None Game ------ Seed GreatProcessingMatrix Manual? 0 Play Time 00:26:55 Cumulative 376.2 hours Start 2025.09.18 @ 01:35:54 End 2025.09.18 @ 02:03:23 Sessions 1 Manual Loads 0 Difficulty Rogue Special Mode None Game No. 423 Rogue 423 Adventurer 0 Explorer 0 Win Type - Total 11 Types 8/0/2/1/0/0/0/0/0/0 Lore% 79 Gallery% 81 Achievement% 76 Wizard Run 0 Options --------- Layout 0 ASCII 0 Keyboard 1 Movement Numpad Keybinds 0 Fullscreen 2 Font 18/X11 Map View 76x50 Zoom Use 0% Tactical HUD 1 Map Filters NONE Filters NONE Steam 1 RUN: 02214a95-de01-449f-b6c4-108bd1a761c8